bitfinex-derivatives/quotes_SOLF0:USTF0_20260222
["timestamp","ask_amount","ask_price","bid_price","bid_amount"]
[1771802557317,7.78739419,82.659,82.58,22.26016801]
[1771802557318,7.79620824,82.609,82.564,14.99926727]
[1771802557619,7.79620824,82.609,82.55,2.62373493]
[1771802558821,7.79620824,82.609,82.562,10.9051]
[1771802565432,2.62373493,82.6,82.562,10.9051]
[1771802565631,10.40618606,82.6,82.562,10.9051]
[1771802565830,7.78245113,82.6,82.562,10.9051]
[1771802567233,2.62373493,82.61,82.562,10.9051]
[1771802567432,7.75137991,82.612,82.562,10.9051]
[1771802567825,7.75137991,82.612,82.57,2.62373493]
[1771802568432,7.75137991,82.612,82.571,10.904]
[1771802568933,7.75620306,82.609,82.561,10.9053]
[1771802570727,7.75620306,82.609,82.574,10.9036]
[1771802571035,7.74597362,82.619,82.574,10.9036]
[1771802572333,7.67768949,82.609,82.563,10.905]
[1771802573833,2.62373493,82.62,82.577,10.9032]
[1771802574134,7.52037603,82.619,82.577,10.9032]
[1771802575635,7.52037603,82.619,82.589,10.9016]
[1771802577136,7.52037603,82.619,82.58,2.62373493]
[1771802577532,7.51497692,82.639,82.58,2.62373493]
[1771802578738,7.51497692,82.639,82.59,2.62373493]
[1771802580136,7.51497692,82.639,82.541,22.26016801]
[1771802580137,7.35633185,82.629,82.58,2.62373493]
[1771802580334,2.62373493,82.62,82.57,2.62373493]
[1771802580533,2.62373493,82.61,82.56,2.62373493]
[1771802580740,9.98006678,82.61,82.56,2.62373493]
[1771802580939,7.35633185,82.609,82.55,2.62373493]
[1771802581828,7.35633185,82.609,82.558,10.9056]
[1771802582833,7.35633185,82.609,82.56,2.62373493]
[1771802584631,7.35633185,82.609,82.562,10.9052]
[1771802590142,7.35633185,82.609,82.57,2.62373493]
[1771802592038,7.35633185,82.609,82.571,10.904]
[1771802594146,7.35633185,82.609,82.564,10.9049]
[1771802594346,7.37400841,82.65,82.6,2.62373493]
[1771802594642,7.37400841,82.649,82.6,2.62373493]
[1771802595545,7.37400841,82.649,82.59,2.62373493]
[1771802595746,7.37400841,82.649,82.6,2.62373493]
[1771802597746,7.29674851,82.646,82.6,2.62373493]
[1771802597945,7.29674851,82.646,82.59,13.52523493]
[1771802598146,7.29674851,82.646,82.6,2.62373493]
[1771802602940,7.29674851,82.646,82.543,36.19]
[1771802602941,7.06850073,82.656,82.61,2.62373493]
[1771802604350,7.06850073,82.656,82.604,10.8997]
[1771802604544,7.06850073,82.656,82.61,2.62373493]
[1771802605354,7.06850073,82.656,82.61,2.62428264]
[1771802605544,7.06850073,82.656,82.567,22.26016801]
[1771802605545,7.06230143,82.669,82.62,2.62428264]
[1771802605750,7.06230143,82.669,82.63,2.62428264]
[1771802605954,7.06230143,82.697,82.66,2.62428264]
[1771802606155,9.67963879,82.71,82.66,2.62428264]
[1771802606554,478.53355091,82.704,82.66,2.62428264]
[1771802606957,7.05324451,82.679,82.619,14.99926727]
[1771802607152,7.05324451,82.679,82.62,2.62428264]
[1771802607955,7.05324451,82.679,82.63,2.62428264]
[1771802608151,7.05324451,82.679,82.64,2.62428264]
[1771802609363,7.05324451,82.679,82.63,2.62428264]
[1771802609558,7.05324451,82.679,82.62,13.52178264]
[1771802610258,7.05324451,82.679,82.555,29.66871775]
[1771802610259,7.41809397,82.659,82.61,13.52308264]
[1771802610651,471.47819476,82.704,82.59,2.62428264]
[1771802610652,7.41809397,82.649,82.59,2.62428264]
[1771802610851,7.41809397,82.649,82.62,2.62428264]
[1771802611658,7.41809397,82.649,82.61,2.62428264]
[1771802611855,7.41729045,82.665,82.611,10.8987]
[1771802613250,7.41729045,82.665,82.626,10.8966]
[1771802617056,7.09547981,82.659,82.626,10.8966]
[1771802618868,7.09547981,82.659,82.617,10.8979]
[1771802620866,7.09926461,82.649,82.602,10.8999]
[1771802626675,7.09926461,82.649,82.61,10.8987]
[1771802626878,2.62428264,82.66,82.61,13.52298264]
[1771802627777,9.71407518,82.66,82.61,13.52298264]
[1771802628275,2.62428264,82.66,82.61,13.52298264]
[1771802628482,7.09817301,82.659,82.61,10.8987]
[1771802628685,9.72245565,82.65,82.61,10.8987]
[1771802628881,7.09817301,82.65,82.61,10.8987]
[1771802629082,7.09676813,82.649,82.61,10.8987]
[1771802629483,7.09676813,82.639,82.595,10.9008]
[1771802633683,7.09676813,82.639,82.603,10.8997]
[1771802635288,7.09676813,82.639,82.592,10.9011]
[1771802657801,7.09676813,82.639,82.6,2.62428264]
[1771802659200,11.08746806,82.664,82.617,5.16693855]
[1771802659401,2.62428264,82.66,82.617,5.16693855]
[1771802659606,2.62428264,82.65,82.617,5.16693855]
[1771802659806,2.62428264,82.65,82.606,5.16693855]
[1771802660404,2.62428264,82.65,82.606,16.06633855]
[1771802660801,2.62428264,82.65,82.607,5.19055453]
[1771802661202,6.53310491,82.649,82.607,5.19055453]
[1771802665908,6.53310491,82.659,82.616,5.84252456]
[1771802666104,6.53310491,82.659,82.621,5.84233925]
[1771802666304,6.53310491,82.68,82.64,2.62474418]
[1771802666509,246.24194089,82.684,82.645,5.84233925]
[1771802666814,246.24194089,82.684,82.66,2.62474418]
[1771802667104,6.53310491,82.703,82.661,5.84233925]
[1771802667304,471.47819476,82.704,82.66,2.62474418]
[1771802667305,471.47819476,82.704,82.663,5.86789172]
[1771802667706,471.47819476,82.704,82.626,22.26016801]
[1771802667707,471.47819476,82.704,82.671,5.86789172]
[1771802671406,2.62474418,82.71,82.671,5.86789172]
[1771802671407,6.53310491,82.709,82.671,5.86789172]
[1771802671908,6.53310491,82.709,82.664,10.8917]
[1771802672113,6.53310491,82.709,82.669,5.93539478]
[1771802672307,9.15784909,82.72,82.669,5.93539478]
[1771802672503,9.15784909,82.72,82.671,5.93539478]
[1771802672910,6.53310491,82.719,82.671,5.93539478]
[1771802673311,6.53310491,82.719,82.672,5.95923437]
[1771802674317,6.53310491,82.719,82.674,5.99219993]
[1771802675814,475.80833113,82.751,82.639,36.34]
[1771802675815,6.53310491,82.731,82.681,6.01541887]
[1771802676412,6.53310491,82.729,82.681,6.01541887]
[1771802676610,6.53310491,82.729,82.689,6.07619127]
[1771802677813,6.53310491,82.729,82.696,10.8875]
[1771802679409,4.91e-06,82.729,82.707,10.8861]
[1771802680319,2.62474418,82.74,82.707,10.8861]
[1771802680711,2.62474418,82.74,82.697,10.8874]
[1771802681313,6.43979992,82.739,82.697,10.8874]
[1771802681714,475.80833113,82.751,82.685,10.889]
[1771802681715,4.418e-05,82.71,82.685,10.889]
[1771802682017,6.4398441,82.71,82.685,10.889]
[1771802682215,6.4398441,82.71,82.674,10.8903]
[1771802682613,6.4398441,82.71,82.675,6.76111398]
[1771802682822,6.4398441,82.71,82.679,10.8898]
[1771802683315,477.91248684,82.751,82.626,363.14444586]
[1771802683316,2.62474418,82.72,82.681,6.76111398]
[1771802683519,2.62474418,82.72,82.661,6.76111398]
[1771802684620,2.62474418,82.72,82.67,2.62474418]
[1771802684815,2.62474418,82.72,82.682,10.8893]
[1771802685315,6.43979992,82.719,82.682,10.8893]
[1771802686215,6.43979992,82.748,82.683,6.76111398]
[1771802686424,2.62474418,82.73,82.691,6.76111398]
[1771802687312,2.62474418,82.74,82.691,6.76111398]
[1771802687512,6.43979992,82.745,82.691,6.76111398]
[1771802688512,6.43979992,82.758,82.72,2.62474418]
[1771802688719,6.43979992,82.758,82.721,6.76111398]
[1771802688910,2.62474418,82.77,82.721,6.76111398]
[1771802689712,9.0645441,82.77,82.721,6.76111398]
[1771802690316,6.43979992,82.769,82.723,6.76111398]
[1771802691318,2.62474418,82.79,82.731,6.76111398]
[1771802691616,6.43979992,82.799,82.741,6.76111398]
[1771802691817,6.43979992,82.799,82.75,2.62474418]
[1771802692018,6.43979992,82.799,82.751,6.76111398]
[1771802692516,6.43979992,82.779,82.732,6.76111398]
[1771802693124,6.43979992,82.769,82.732,6.76111398]
[1771802693327,6.43979992,82.769,82.721,6.76111398]
[1771802694723,6.43979992,82.769,82.723,6.76111398]
[1771802695117,6.43979992,82.798,82.73,2.62474418]
[1771802695321,9.0645441,82.78,82.741,6.76111398]
[1771802695722,6.43979992,82.779,82.741,6.76111398]
[1771802698430,6.43979992,82.779,82.736,10.8822]
[1771802700130,6.43979992,82.779,82.738,17.64301398]
[1771802700340,6.43979992,82.792,82.741,6.76111398]
[1771802700832,6.43979992,82.792,82.751,6.76111398]
[1771802701232,2.62474418,82.78,82.738,6.76111398]
[1771802701432,6.43979992,82.779,82.738,6.76111398]
[1771802701629,2.62474418,82.77,82.738,6.76111398]
[1771802701833,6.43979992,82.779,82.738,6.76111398]
[1771802702034,2.62474418,82.77,82.738,6.76111398]
[1771802702232,6.43979992,82.779,82.738,6.76111398]
[1771802702537,9.0645441,82.79,82.741,6.76111398]
[1771802702736,6.43979992,82.789,82.741,6.76111398]
[1771802703328,6.43979992,82.789,82.742,6.76111398]
[1771802704734,6.43979992,82.789,82.74,2.62474418]
[1771802704735,6.43979992,82.789,82.745,6.76111398]
[1771802704938,6.43979992,82.789,82.751,6.76111398]
[1771802705239,2.62474418,82.8,82.751,6.76111398]
[1771802705636,6.43979992,82.799,82.751,6.76111398]
[1771802706136,6.43979992,82.779,82.734,6.76111398]
[1771802706340,6.43979992,82.779,82.741,6.76111398]
[1771802706538,2.62474418,82.79,82.741,6.76111398]
[1771802706942,9.0645441,82.79,82.741,6.76111398]
[1771802707139,398.97536076,82.838,82.741,6.76111398]
[1771802707334,2.62474418,82.8,82.751,6.76111398]
[1771802707540,6.43979992,82.799,82.751,6.76111398]
[1771802708744,6.43979992,82.799,82.757,10.8794]
[1771802709338,7.16449238,82.789,82.745,10.8811]
[1771802712042,7.16449238,82.779,82.738,7.02203698]
[1771802712442,7.16449238,82.779,82.695,36.34]
[1771802712443,7.16449238,82.769,82.725,7.02203698]
[1771802713140,9.78923656,82.76,82.713,17.90733698]
[1771802713539,7.16449238,82.759,82.713,17.90733698]
[1771802713743,14.70012036,82.82,82.658,191.2242]
[1771802713744,7.16449238,82.749,82.702,10.8866]
[1771802713934,2.62474418,82.74,82.702,10.8866]
[1771802714145,7.16449238,82.749,82.702,10.8866]
[1771802714648,2.62474418,82.74,82.7,7.02203698]
[1771802715547,9.78923656,82.74,82.7,7.02203698]
[1771802716549,7.17266978,82.739,82.7,7.02203698]
[1771802724556,7.17266978,82.755,82.71,2.62474418]
[1771802724751,7.17266978,82.755,82.711,7.16597874]
[1771802725653,2.62474418,82.77,82.711,7.16597874]
[1771802725654,7.17266978,82.769,82.721,10.8842]
[1771802725850,7.17266978,82.769,82.721,18.05017874]
[1771802726052,7.17266978,82.769,82.722,7.16597874]
[1771802726248,7.17266978,82.769,82.729,7.16597874]
[1771802726450,7.17266978,82.769,82.731,7.16597874]
[1771802726949,10.8739,82.8,82.733,10.8827]
[1771802727155,2.62474418,82.79,82.741,7.16597874]
[1771802727450,2.61584351,82.79,82.741,7.16597874]
[1771802727953,9.78851329,82.79,82.741,7.16597874]
[1771802728744,7.17266978,82.79,82.741,7.16597874]
[1771802729855,7.17266978,82.79,82.75,2.61584351]
[1771802730454,7.17266978,82.79,82.747,10.8808]
[1771802730955,7.17266978,82.79,82.749,10.8804]
[1771802732553,7.17266978,82.79,82.75,7.16597874]
[1771802733455,7.17266978,82.779,82.739,10.8818]
[1771802733857,7.17266978,82.779,82.738,7.16597874]
[1771802735763,7.17266978,82.769,82.722,7.16597874]
[1771802737367,7.17266978,82.769,82.723,18.04997874]
[1771802741068,7.1705126,82.759,82.714,10.8851]
[1771802741269,7.1705126,82.759,82.71,6.96701814]
[1771802741569,9.78635611,82.77,82.721,6.96701814]
[1771802742066,7.1705126,82.799,82.74,2.61584351]
[1771802742371,7.1705126,82.779,82.731,6.96701814]
[1771802743163,7.1705126,82.779,82.733,10.8826]
[1771802743368,9.78635611,82.79,82.741,6.96701814]
[1771802743765,7.1705126,82.789,82.741,6.96701814]
[1771802744773,7.1705126,82.789,82.743,10.8813]
[1771802745068,7.1705126,82.789,82.744,6.96701814]
[1771802745670,7.1705126,82.789,82.748,6.96701814]
[1771802752474,2.61584351,82.8,82.748,6.96701814]
[1771802754163,9.78635611,82.8,82.748,6.96701814]
[1771802754573,7.1705126,82.799,82.748,6.96701814]
[1771802755072,2.61584351,82.8,82.754,6.96701814]
[1771802755271,465.49705157,82.809,82.761,6.96701814]
[1771802755976,7.1705126,82.808,82.761,6.96701814]
[1771802756473,7.1705126,82.806,82.761,6.96701814]
[1771802758568,386.88670182,82.838,82.77,2.61584351]
[1771802758569,18.0421126,82.818,82.77,2.61584351]
[1771802758775,18.0421126,82.818,82.771,6.96701814]
[1771802759178,2.61584351,82.81,82.771,6.96701814]
[1771802759477,7.1705126,82.809,82.771,6.96701814]
[1771802760377,7.1705126,82.809,82.763,10.8787]
[1771802760578,7.1705126,82.809,82.752,10.8801]
[1771802760579,2.61584351,82.79,82.752,10.8801]
[1771802760973,2.61584351,82.79,82.745,6.96701814]
[1771802761175,9.78635611,82.79,82.745,6.96701814]
[1771802761376,7.1705126,82.789,82.745,6.96701814]
[1771802764381,7.1705126,82.779,82.733,6.96701814]
[1771802768483,2.61584351,82.77,82.723,7.05211836]
[1771802769280,9.84483957,82.77,82.723,7.05211836]
[1771802769682,9.84483957,82.77,82.725,7.05211836]
[1771802770684,9.84483957,82.77,82.728,7.05211836]
[1771802773182,7.22899606,82.77,82.728,7.05211836]
[1771802773487,7.22899606,82.77,82.73,2.61584351]
[1771802776188,7.22899606,82.77,82.73,9.65608889]
[1771802777187,7.35697237,82.768,82.72,2.61584351]
[1771802777388,7.35697237,82.768,82.72,9.65608889]
[1771802777588,7.35697237,82.768,82.721,7.04024538]
[1771802778780,7.35697237,82.766,82.721,7.04024538]
[1771802785092,10.8794,82.758,82.721,7.04024538]
[1771802785295,7.35697237,82.757,82.705,7.04024538]
[1771802785491,7.35697237,82.749,82.705,7.04024538]
[1771802786695,7.35697237,82.749,82.707,7.04024538]
[1771802794102,7.35697237,82.739,82.696,17.92764538]
[1771802794297,7.35697237,82.739,82.686,7.04024538]
[1771802794495,7.35697237,82.729,82.686,7.04024538]
[1771802797406,7.35697237,82.729,82.688,7.04024538]
[1771802798506,7.35697237,82.729,82.691,7.44687431]
[1771802801007,191.21138055,82.795,82.644,349.6138651]
[1771802801008,7.03686026,82.739,82.7,2.61810244]
[1771802801213,7.03686026,82.739,82.701,7.44687431]
[1771802813728,7.03686026,82.729,82.69,2.61810244]
[1771802813929,7.03686026,82.729,82.685,7.44687431]
[1771802815834,14.70012036,82.775,82.664,14.88891591]
[1771802815835,7.03686026,82.739,82.701,7.44687431]
[1771802817234,2.61810244,82.75,82.711,7.44687431]
[1771802817235,7.03686026,82.75,82.711,7.44687431]
[1771802817737,7.03686026,82.761,82.72,2.61810244]
[1771802818031,7.03686026,82.768,82.721,7.44687431]
[1771802819836,7.03686026,82.764,82.721,7.44687431]
[1771802821140,10.8773,82.774,82.73,2.61810244]
[1771802821439,7.03686026,82.775,82.731,7.44687431]
[1771802822143,7.03686026,82.78,82.74,2.61810244]
[1771802822339,7.03686026,82.78,82.741,7.44687431]
[1771802824937,7.03686026,82.779,82.741,7.44687431]
[1771802825738,2.61810244,82.77,82.729,7.44687431]
[1771802825935,7.03686026,82.779,82.729,7.44687431]
[1771802826335,2.61810244,82.77,82.729,7.44687431]
[1771802826538,7.03686026,82.769,82.729,7.44687431]
[1771802827738,7.03686026,82.783,82.733,7.44687431]
[1771802827938,7.03686026,82.783,82.741,7.44687431]
[1771802832536,7.3400165,82.769,82.721,7.13980012]
[1771802833445,9.95811894,82.74,82.702,7.13980012]
[1771802833641,7.3400165,82.739,82.702,7.13980012]
[1771802836044,7.74475544,82.719,82.675,7.30935234]
[1771802836547,2.61810244,82.73,82.644,363.4557274]
[1771802836548,2.61810244,82.73,82.681,7.30935234]
[1771802839055,7.74475544,82.729,82.681,7.30935234]
[1771802855364,7.74475544,82.729,82.684,7.30935234]
[1771802857263,7.74475544,82.719,82.684,7.30935234]
[1771802857455,2.61952844,82.71,82.651,7.30935234]
[1771802857660,2.61952844,82.71,82.614,29.77783183]
[1771802857661,2.61952844,82.69,82.641,7.30935234]
[1771802857861,2.61952844,82.68,82.641,7.30935234]
[1771802858562,7.74475544,82.687,82.641,7.30935234]
[1771802858760,7.54995702,82.679,82.641,7.30935234]
[1771802859160,2.61952844,82.66,82.618,7.84510897]
[1771802859358,7.54995702,82.659,82.618,7.84510897]
[1771802859659,7.54995702,82.659,82.601,7.84510897]
[1771802859660,2.61952844,82.65,82.601,7.84510897]
[1771802859963,7.54995702,82.649,82.601,7.84510897]
[1771802861663,7.54995702,82.649,82.603,7.84510897]
[1771802864365,7.54995702,82.649,82.61,2.61952844]
[1771802864558,7.54995702,82.649,82.61,10.46463741]
[1771802864760,7.54995702,82.705,82.631,7.84510897]
[1771802864964,7.54995702,82.689,82.641,7.84510897]
[1771802870568,2.61952844,82.7,82.651,7.84510897]
[1771802870770,7.54995702,82.7,82.651,7.84510897]
[1771802870968,7.54995702,82.709,82.671,7.84510897]
[1771802871159,7.54995702,82.709,82.67,2.61952844]
[1771802871160,2.61952844,82.7,82.651,7.84510897]
[1771802871362,7.54995702,82.699,82.651,7.84510897]
[1771802871559,2.61952844,82.7,82.651,7.84510897]
[1771802871560,7.54995702,82.697,82.651,7.84510897]
[1771802871767,7.54995702,82.689,82.64,10.46463741]
[1771802872271,7.54995702,82.689,82.641,7.84510897]
[1771802872670,7.54995702,82.689,82.642,7.84510897]
[1771802875172,7.54995702,82.679,82.642,7.84510897]
[1771802876773,7.54995702,82.679,82.63,10.46463741]
[1771802876966,7.54995702,82.679,82.631,7.84510897]
[1771802877572,7.54995702,82.676,82.631,7.84510897]
[1771802889683,7.54995702,82.676,82.632,7.7606942]
[1771802890885,7.54995702,82.676,82.635,7.7606942]
[1771802898580,7.21649606,82.655,82.604,14.88891591]
[1771802898785,180.30590322,82.717,82.556,21.8119]
[1771802898786,7.21649606,82.649,82.607,7.74927496]
[1771802899890,7.21649606,82.647,82.607,7.74927496]
[1771802901284,7.21649606,82.659,82.611,7.74927496]
[1771802910395,7.21649606,82.659,82.62,2.61952844]
[1771802910596,7.21649606,82.659,82.62,10.3688034]
[1771802910998,7.21649606,82.659,82.621,7.74927496]
[1771802912896,7.21649606,82.671,82.63,2.62378687]
[1771802913094,7.21649606,82.671,82.631,7.74927496]
[1771802913704,7.21649606,82.669,82.631,7.74927496]
[1771802918107,2.62378687,82.65,82.605,7.74927496]
[1771802918308,7.26398403,82.649,82.605,7.74927496]
[1771802920512,7.26398403,82.643,82.605,7.74927496]
[1771802926814,7.26398403,82.648,82.605,7.74927496]
[1771802930523,7.26398403,82.648,82.607,7.4655142]
[1771802930822,7.26398403,82.659,82.611,7.4655142]
[1771802931022,7.26398403,82.659,82.615,7.4655142]
[1771802932717,7.26398403,82.659,82.618,7.4655142]
[1771802943229,7.26398403,82.659,82.623,7.4655142]
[1771802944324,7.26398403,82.671,82.623,7.4655142]
[1771802944629,7.26398403,82.669,82.625,7.4655142]
[1771802947426,2.62378687,82.66,82.625,7.4655142]
[1771802947632,9.8877709,82.65,82.606,7.4655142]
[1771802948332,7.26398403,82.65,82.606,7.4655142]
[1771802948933,7.26398403,82.65,82.611,7.62682315]
[1771802949730,7.75880142,82.667,82.621,7.62682315]
[1771802950432,2.62378687,82.67,82.628,7.62682315]
[1771802952136,7.75880142,82.673,82.628,7.62682315]
[1771802953536,7.75880142,82.673,82.631,7.62682315]
[1771802954839,7.75880142,82.669,82.616,7.62682315]
[1771802955035,7.75880142,82.659,82.616,7.62682315]
[1771802956440,7.75880142,82.659,82.621,7.7901127]
[1771802957936,7.64786186,82.677,82.621,7.7901127]
[1771802958740,7.64786186,82.677,82.628,7.7901127]
[1771802961241,7.64786186,82.677,82.631,7.7901127]
[1771802963742,2.62378687,82.68,82.631,7.7901127]
[1771802963945,2.62378687,82.68,82.633,7.7901127]
[1771802964948,7.64786186,82.691,82.641,7.7901127]
[1771802965143,7.64786186,82.691,82.651,7.7901127]
[1771802965549,7.64786186,82.689,82.651,7.7901127]
[1771802967252,7.64786186,82.669,82.636,7.7901127]
[1771802967452,2.62378687,82.66,82.624,7.7901127]
[1771802969845,2.62378687,82.67,82.624,7.7901127]
[1771802971354,2.62335784,82.67,82.624,7.7901127]
[1771802971749,2.62335784,82.68,82.631,7.7901127]
[1771802972158,7.64786186,82.683,82.637,7.7901127]
[1771802972756,10.8877,82.695,82.641,7.7901127]
[1771802973157,465.33004535,82.705,82.661,7.7901127]
[1771802973357,7.64786186,82.709,82.661,7.7901127]
[1771802973558,7.64786186,82.719,82.676,7.7901127]
[1771802973752,7.64786186,82.719,82.62,169.5163]
[1771802973753,7.64786186,82.745,82.691,7.7901127]
[1771802973958,7.64786186,82.745,82.7,2.62335784]
[1771802974152,7.64786186,82.745,82.7,7.7901127]
[1771802975260,2.62335784,82.74,82.7,7.7901127]
[1771802976557,7.64786186,82.739,82.7,7.7901127]
[1771802976758,2.10344348,82.791,82.686,7.7901127]
[1771802976759,2.62335784,82.73,82.686,7.7901127]
[1771802977062,7.64786186,82.719,82.671,7.7901127]
[1771802978859,7.41914197,82.737,82.671,7.7901127]
[1771802979064,2.62335784,82.73,82.681,7.31066844]
[1771802979464,7.41914197,82.729,82.681,7.31066844]
[1771802980163,10.04249981,82.72,82.681,7.31066844]
[1771802983663,7.41914197,82.72,82.681,7.31066844]
[1771802994872,7.41914197,82.719,82.681,7.31066844]
[1771802995073,7.41914197,82.719,82.673,7.31066844]
[1771802995973,7.41914197,82.717,82.659,7.31066844]
[1771802996182,7.41914197,82.699,82.659,7.31066844]
[1771802996371,2.62335784,82.72,82.66,2.62335784]
[1771802996571,7.41914197,82.714,82.663,7.31066844]
[1771802996777,7.41914197,82.714,82.67,2.62335784]
[1771802996976,7.41914197,82.714,82.671,7.31066844]
[1771802998675,7.41914197,82.724,82.671,7.31066844]
[1771803000282,7.41914197,82.724,82.677,7.31066844]
[1771803000583,7.41914197,82.724,82.681,7.31066844]
[1771803001772,7.41914197,82.719,82.67,2.62335784]
[1771803001985,7.41914197,82.719,82.67,7.31066844]
[1771803002179,2.62335784,82.73,82.681,7.31066844]
[1771803002485,2.62335784,82.74,82.691,7.31066844]
[1771803002678,7.41914197,82.743,82.691,7.31066844]
[1771803003177,7.41914197,82.743,82.69,0.37402628]
[1771803003379,7.41914197,82.729,82.676,10.8901]
[1771803003579,2.62335784,82.72,82.676,10.8901]
[1771803003775,7.41914197,82.709,82.66,2.62335784]
[1771803004677,7.41914197,82.709,82.661,10.892]
[1771803005276,7.41914197,82.709,82.662,7.31066844]
[1771803006181,7.41914197,82.699,82.662,7.31066844]
[1771803007880,7.41914197,82.699,82.651,7.31066844]
[1771803008379,18.22108342,82.714,82.671,7.27746361]
[1771803008584,7.33588342,82.714,82.671,7.27746361]
[1771803012290,7.33588342,82.714,82.661,10.8921]
[1771803012486,7.33588342,82.709,82.661,10.8921]
[1771803013394,7.33588342,82.699,82.646,7.27746361]
[1771803013589,7.33588342,82.689,82.646,7.27746361]
[1771803013786,7.33588342,82.689,82.631,7.27746361]
[1771803014091,7.33588342,82.689,82.642,10.8945]
[1771803014291,7.33588342,82.689,82.643,7.27746361]
[1771803016592,2.62335784,82.7,82.643,7.27746361]
[1771803016794,2.62335784,82.7,82.644,7.15477801]
[1771803016994,9.96326103,82.7,82.644,7.15477801]
[1771803017291,7.33990319,82.699,82.644,7.15477801]
[1771803018085,7.33990319,82.689,82.644,7.15477801]
[1771803018690,7.33990319,82.679,82.629,7.15477801]
[1771803018894,2.62335784,82.67,82.629,7.15477801]
[1771803019091,9.96326103,82.67,82.629,7.15477801]
[1771803019391,7.33990319,82.666,82.615,7.15477801]
[1771803019594,7.33990319,82.659,82.615,7.15477801]
[1771803022895,7.33990319,82.659,82.586,14.88891591]
[1771803022896,7.33990319,82.649,82.603,7.15477801]
[1771803023101,7.33990319,82.666,82.603,7.15477801]
[1771803024800,7.33990319,82.665,82.614,7.15477801]
[1771803025001,7.33990319,82.659,82.614,7.15477801]
[1771803025205,7.33990319,82.658,82.614,7.15477801]
[1771803026095,10.8911,82.669,82.621,7.15477801]
[1771803026698,21.7719,82.709,82.621,7.15477801]
[1771803026699,10.8914,82.667,82.621,7.15477801]
[1771803026997,7.33990319,82.666,82.621,7.15477801]
[1771803027695,10.8918,82.664,82.621,7.15477801]
[1771803027899,18.23170319,82.664,82.621,7.15477801]
[1771803031406,7.33990319,82.677,82.621,7.15477801]
[1771803032201,7.33990319,82.677,82.63,2.62335784]
[1771803032403,7.33990319,82.677,82.631,7.15477801]
[1771803037498,7.33990319,82.677,82.64,2.6227149]
[1771803038300,7.37031549,82.688,82.641,7.58321826]
[1771803038696,7.37031549,82.688,82.65,2.6227149]
[1771803038905,7.37031549,82.688,82.641,7.58321826]
[1771803039307,7.37031549,82.7,82.661,7.58321826]
[1771803040002,7.37031549,82.719,82.67,2.6227149]
[1771803040205,7.37031549,82.719,82.67,10.20593316]
[1771803040504,7.37031549,82.719,82.68,2.6227149]
[1771803040900,7.37031549,82.719,82.671,7.58321826]
[1771803043208,7.37031549,82.719,82.68,2.6227149]
[1771803043811,7.37031549,82.719,82.69,2.6227149]
[1771803044310,7.37031549,82.719,82.681,7.58321826]
[1771803044509,7.37031549,82.719,82.674,7.58321826]
[1771803045713,2.6227149,82.71,82.662,7.58321826]
[1771803046014,7.37031549,82.709,82.662,7.58321826]
[1771803046608,2.6227149,82.69,82.626,7.58321826]
[1771803046811,7.37031549,82.689,82.63,2.6227149]
[1771803047010,7.37031549,82.689,82.631,7.58321826]
[1771803047411,2.6227149,82.68,82.631,7.58321826]
[1771803047612,7.37031549,82.679,82.631,7.58321826]
[1771803051616,2.6227149,82.67,82.631,7.58321826]
[1771803051819,7.37031549,82.669,82.622,10.8972]
[1771803052119,7.37031549,82.659,82.607,10.8992]
[1771803052710,2.6227149,82.65,82.607,10.8992]
[1771803053715,7.37031549,82.649,82.606,7.58321826]
[1771803057320,7.37031549,82.649,82.61,2.6227149]
[1771803057521,7.37031549,82.664,82.611,7.58321826]
[1771803058921,7.37031549,82.664,82.621,7.58321826]
[1771803064423,9.99303039,82.66,82.621,7.58321826]
[1771803064623,7.37031549,82.66,82.61,2.6227149]
[1771803064821,7.37031549,82.659,82.61,2.6227149]
[1771803065025,7.37031549,82.659,82.61,10.20593316]
[1771803065228,7.37031549,82.659,82.611,7.58321826]
[1771803066025,7.37031549,82.659,82.612,18.48171826]
[1771803066225,7.37031549,82.659,82.613,7.58321826]
[1771803066722,9.99303039,82.67,82.621,7.58321826]
[1771803066929,7.37031549,82.669,82.621,7.58321826]
[1771803069728,2.6227149,82.66,82.621,7.58321826]
[1771803070628,2.6227149,82.66,82.583,14.99135346]
[1771803070629,7.67408421,82.659,82.609,18.05430485]
[1771803073029,7.67408421,82.659,82.609,10.899]
[1771803073233,7.67408421,82.659,82.614,7.15530485]
[1771803074031,7.67408421,82.659,82.616,7.15530485]
[1771803075331,2.6227149,82.66,82.616,7.15530485]
[1771803075332,7.67408421,82.658,82.616,7.15530485]
[1771803076031,7.77611324,82.649,82.597,10.9005]
[1771803076237,10.39882814,82.64,82.597,10.9005]
[1771803076630,10.39882814,82.64,82.596,7.50976932]
[1771803076631,7.77611324,82.639,82.596,7.50976932]
[1771803079527,10.8959,82.633,82.596,7.50976932]
[1771803079730,2.6227149,82.63,82.596,7.50976932]
[1771803079925,7.77611324,82.632,82.596,7.50976932]
[1771803080141,7.77611324,82.63,82.581,7.50976932]
[1771803080436,2.6227149,82.64,82.591,7.50976932]
[1771803080936,7.77611324,82.639,82.591,7.50976932]